Cogmind - Beta 13 @@@ ROGUE MODE // 2024.03.13 @ 20:08:31 Player: Falconhoof Result: Destroyed by G-34 Mercenary with Small Laser Performance ------------- Evolutions (0) 0 Regions Visited (1) 200 Robots Destroyed (4) 20 Value Destroyed (136) 136 Prototype IDs (0) 0 Alien Tech Used (0) 0 Bonus (0) 0 TOTAL SCORE: 356 Bonus ------- None Cogmind --------- Core Integrity 0/250 Matter 131/300 Energy 100/100 System Corruption 4% Temperature Cool (6) Movement Core (200) Ox3 Location -10/Materials Parts ------- > --- POWER (1) -------- (None) > --- PROPULSION (2) --- (None) > --- UTILITY (2) ------ Medium Storage Unit > --- WEAPON (2) ------- (None) > --- INVENTORY (10) --- Core Shielding Grenade Launcher Peak State ------------ > --- POWER ------------ Light Ion Engine > --- PROPULSION ------- Wheel Compact Wheel > --- UTILITY ---------- Small Storage Unit Backup Plating I > --- WEAPON ----------- Light Assault Rifle Light Assault Rifle > --- INVENTORY -------- Light Ion Engine [Rating: 7] Favorites ----------- Power Light Ion Engine Engine Light Ion Engine Propulsion Compact Wheel Wheel Compact Wheel Utility Small Storage Unit Storage Small Storage Unit Protection Backup Plating I Weapon Light Assault Rifle Energy Gun EM Pulse Gun Ballistic Gun Light Assault Rifle Build | -11 -10 ------- Run | Yrd Mat Slots Evolved . | . . Power . | . . Propulsion . | . . Utility . | . . Weapon . | . . Parts Attached 14 | 6 8 Power 3 | 1 2 Engine 3 | 1 2 Core . | . . Reactor . | . . Propulsion 2 | 2 . Treads . | . . Leg . | . . Wheel 2 | 2 . Hover . | . . Flight . | . . Utility 3 | 1 2 Device . | . . Storage 2 | 1 1 Processor . | . . Hackware . | . . Protection 1 | . 1 Artifact . | . . Weapon 6 | 2 4 Energy Gun 3 | 1 2 Energy Cannon . | . . Ballistic Gun 3 | 1 2 Ballistic Cannon . | . . Launcher . | . . Special Weapon . | . . Impact Weapon . | . . Slashing Weapon . | . . Piercing Weapon . | . . Special Melee Weapon . | . . Unidentified Prototypes . | . . Parts Lost 7 | . 7 Power 1 | . 1 Propulsion 1 | . 1 Utility 2 | . 2 Weapon 3 | . 3 Highest Loss Streak 4 | . 4 To Critical Strikes . | . . Average Slot Usage (%) 77 | . 77 Engine 10 | . 10 Wheel 22 | . 22 Storage 13 | . 13 Protection 5 | . 5 Energy Gun 5 | . 5 Ballistic Gun 18 | . 18 Naked Turns . | . . Heaviest Build 19 | 11 19 Greatest Support 26 | 26 26 Greatest Overweight (x) 3 | 3 3 Average Overweight (x) . | . . Largest Inventory Capacity 10 | 8 10 Average Capacity 7 | 6 8 Most Carried 5 | 5 5 Average Carried 1 | 1 2 Final Capacity 10 | 8 10 Final Carried 2 | 2 2 Class Distribution -------------------- 100% | Mutant Dominant Class ---------------- Mutant | -10/Materials Resources | -11 -10 ----------- Run | Yrd Mat Matter Collected 183 | 153 30 Remotely . | . . Salvage Created 153 | . 153 Parts 9 | . 9 Haulers Intercepted . | . . Recyclers Shooed . | . . Parts Field Recycled . | . . Retrieved Matter . | . . Parts Self-Destructed . | . . Prevented . | . . Kills | -11 -10 ------- Run | Yrd Mat Combat Hostiles Destroyed 3 | . 3 Guns 3 | . 3 Classes Destroyed 2 | . 2 Worker 1 | . 1 Grunt 3 | . 3 Best Kill Streak 3 | . 3 Combat Bots Only 2 | . 2 Max Kills in Single Turn 1 | . 1 Gunslinging . | . . Exploded . | . . Melee . | . . Uniques/NPCs Destroyed . | . . Combat | -11 -10 -------- Run | Yrd Mat Hostile Shots Fired 77 | . 77 Missed 14 | . 14 Damage Taken 802 | . 802 Core 267 | . 267 Absorbed by Shields . | . . Core Remaining (%) 100 | 100 . Volleys Fired 23 | . 23 Largest 2 | . 2 Hottest 60 | . 60 Shots Fired 46 | . 46 Gun 46 | . 46 Cannon . | . . Launcher . | . . Special . | . . Kinetic 37 | . 37 Thermal . | . . Explosive . | . . Electromagnetic 9 | . 9 Robot Hit Streak 14 | . 14 Robot Miss Streak 2 | . 2 Penetration Max . | . . Secondary Targets . | . . Shots Hit Robots 24 | . 24 Core Hits 9 | . 9 Critical Kills . | . . Critical Parts Destroyed . | . . Critical Strikes . | . . Melee Attacks . | . . Impact . | . . Slashing . | . . Piercing . | . . Sneak Attacks . | . . Combat Hostiles . | . . Follow-up Attacks . | . . Damage Inflicted 221 | . 221 Guns 195 | . 195 Cannons . | . . Explosions . | . . Melee . | . . Ramming 26 | . 26 Kinetic 168 | . 168 Thermal . | . . Explosive . | . . Electromagnetic 27 | . 27 Impact . | . . Slashing . | . . Piercing . | . . Highest Corruption 4 | . 4 Average Corruption 3 | . 3 Corruption Purged . | . . Corruption Blocked . | . . Effects 10 | . 10 Message Errors 2 | . 2 Matter Fused 1 | . 1 Heat Flow Errors 1 | . 1 Parts Rejected 1 | . 1 Data Loss (minor) 1 | . 1 Misfires 3 | . 3 Weapon Failures 1 | . 1 Overload Shots . | . . Overflow Damage . | . . Projectiles . | . . Explosions . | . . Melee . | . . Knockbacks . | . . Impact . | . . Kinetic . | . . Secondary . | . . Self-Inflicted Damage 26 | . 26 Shots . | . . Rammed . | . . Targets Rammed . | . . Kicked . | . . Crushed . | . . Highest Temperature 270 | . 270 Average Temperature 104 | . 104 Received Heat Transfer 438 | . 438 Siege Activations . | . . Robots Corrupted . | . . Combat Hostiles . | . . Parts Fried . | . . Impact Corruptions . | . . Robots Melted . | . . Combat Hostiles . | . . Parts Melted . | . . Heat Transferred . | . . Parts Sabotaged . | . . Parts Stolen . | . . Parts Stripped . | . . Power Chain Reactions . | . . Alert | -11 -10 ------- Run | Yrd Mat Peak Influence 80 | . 80 Initial . | . . Average 14 | . 22 Maximum Alert Level . | . . Low Security (%) 100 | 100 100 Level 1 . | . . Level 2 . | . . Level 3 . | . . Level 4 . | . . Level 5 . | . . High Security . | . . Max Security . | . . Squads Dispatched . | . . Investigation . | . . Extermination . | . . Reinforcement . | . . Assault . | . . Garrison . | . . Intercept . | . . Searches Triggered . | . . Construction Impeded . | . . Haulers Reinforced . | . . Active Scanning Responses . | . . Cargo Convoy Interrupts . | . . Stealth | -11 -10 --------- Run | Yrd Mat Distress Signals 1 | . 1 Communications Jammed . | . . Distress Signals . | . . Times Spotted 8 | . 8 Peak Tracking Total 6 | . 6 Tactical Retreats 1 | . 1 Traps | -11 -10 ------- Run | Yrd Mat Traps Triggered 1 | . 1 Indirectly . | . . Trap Hack Attempts . | . . Triggered . | . . Disarmed . | . . Reprogrammed . | . . Reused . | . . Traps Extracted . | . . Installed . | . . Triggered . | . . Machines | -11 -10 ---------- Run | Yrd Mat Machines Disabled 2 | . 2 Max in Single Turn 1 | . 1 Machines Repaired . | . . Machines Dismantled . | . . Machines Sabotaged . | . . Overloaded Fab Kills . | . . Hacking | -11 -10 --------- Run | Yrd Mat Machines Accessed 5 | . 5 Terminals 3 | . 3 Fabricators . | . . Repair Stations 1 | . 1 Recycling Units 1 | . 1 Scanalyzers . | . . Garrison Access . | . . Total Hacks 14 | . 14 Successful 9 | . 9 Failed 5 | . 5 Catastrophic . | . . Database Lockouts . | . . Manual . | . . Terminals 11 | . 11 Fabricators . | . . Repair Stations 1 | . 1 Recycling Units 2 | . 2 Scanalyzers . | . . Garrison Access . | . . Terminal Hacks 6 | . 6 Record 1 | . 1 Branch Access Points 1 | . 1 Emergency Access Points 1 | . 1 Unreport Threat 1 | . 1 Investigation Status 1 | . 1 Zone Layout 1 | . 1 Fabricator Hacks . | . . Repair Station Hacks 1 | . 1 Refit 1 | . 1 Recycling Unit Hacks 2 | . 2 Process 1 | . 1 Report Inventory 1 | . 1 Scanalyzer . | . . Garrison Access Hacks . | . . Unauthorized Hacks . | . . Terminals . | . . Fabricators . | . . Repair Stations . | . . Recycling Units . | . . Scanalyzers . | . . Garrison Access . | . . Data Cores Recovered . | . . Used . | . . Hacking Detections 2 | . 2 Full Trace Events . | . . Feedback Events . | . . Feedback Blocked . | . . Robot Schematics Acquired . | . . Robots Built . | . . Authchips . | . . Time . | . . Total Robot Build Rating . | . . Part Schematics Acquired . | . . Parts Built . | . . Authchips . | . . Time . | . . Total Part Build Rating . | . . Parts Repaired . | . . Time . | . . Parts Recycled . | . . Recycled Matter 148 | . 148 Retrieved Matter . | . . Retrieved Components . | . . Parts Scanalyzed . | . . Part Schematics Acquired . | . . Parts Damaged . | . . Bothacking | -11 -10 ------------ Run | Yrd Mat Used RIF Installer . | . . Robots Hacked . | . . Non-combat . | . . Combat . | . . Robot Hacks Applied . | . . Relay Couplers Released . | . . Fabnet Peak Effective % . | . . Robots Rewired . | . . Allies Hacked . | . . Hacks Repelled . | . . Allies | -11 -10 -------- Run | Yrd Mat Total Allies . | . . Largest Group . | . . Highest-Rated Group . | . . Highest-Rated Ally . | . . Total Orders . | . . Ally Attacks . | . . Total Damage . | . . Kills . | . . Allies Corrupted . | . . Allies Melted . | . . Intel | -11 -10 ------- Run | Yrd Mat Robot Analysis Total . | . . Derelict Logs Recovered . | . . Drone Launches . | . . Drone Recoveries . | . . Exploration | -11 -10 ------------- Run | Yrd Mat Turns Passed 679 | 222 457 Spaces Moved 417 | 84 333 Core 62 | 61 1 Treads . | . . Legs . | . . Wheels 355 | 23 332 Hover . | . . Flight . | . . Fastest Speed 50 | 50 90 Average Speed 93 | 103 90 Slowest Speed 200 | 200 200 Overloaded Moves . | . . Propulsion Burnouts . | . . Robots Hopped . | . . Cave-ins Triggered . | . . Exploration Rate (%) 23 | 7 32 Regions Visited 1 Branch Regions . Pre-discovered Areas . | . . Known Exits Taken . | . . Unknown Exits Taken 1 | 1 . Scrap Searched . | . . Spaces Dug . | . . Terrain Destroyed . | . . Melee . | . . Projectile . | . . AOE . | . . Terrain Rammed 3 | . 3 Walls Destroyed 1 | . 1 Machines Disabled . | . . Actions | -11 -10 --------- Run | Yrd Mat Total 672 | 218 454 Wait 196 | 122 74 Move 416 | 83 333 Hop . | . . Pick Up 14 | 7 7 Fast Attach 1 | 1 . Attach 13 | 5 8 Detach 3 | . 3 Swap . | . . Drop 3 | . 3 Fire 23 | . 23 Melee . | . . Ram 3 | . 3 Kick . | . . Crush . | . . Escape Stasis . | . . Rewire . | . . Trap . | . . Miscellaneous . | . . Route ------- -11/Scrapyard -10/Materials (discovered 2 exits: Min x2) History --------- Turn | Location | Event 8 | -11/Scrapyard | Discovered new exit (range 16) 223 | -11/Scrapyard | Entered Materials 300 | -10/Materials | Build established: Mutant 318 | -10/Materials | Identified exit to Mines 605 | -10/Materials | Lost 4 parts (1p1n1u1w) 653 | -10/Materials | Core integrity fell below 50% 669 | -10/Materials | Core integrity fell below 20% 680 | -10/Materials | Destroyed by G-34 Mercenary with Small Laser Last Messages --------------- System corrupted: Component data lost. K-01 Serf collects debris. Lgt. Assault Rifle destroyed. K-01 Serf collects debris. Lgt. Assault Rifle destroyed. K-01 Serf collects debris. R-06 Scavenger inserts Broken EM Pulse Gun into recycling unit. System corrupted: Com. Wheel rejected. K-01 Serf collects debris. R-06 Scavenger inserts Broken Lgt. Ion Engine into recycling unit. R-06 Scavenger inserts Sml. Storage Unit into recycling unit. K-01 Serf collects debris. R-06 Scavenger inserts Sml. Laser into recycling unit. R-06 Scavenger collects Particle Gun. R-06 Scavenger collects Lgt. Nuclear Core. R-06 Scavenger collects Aluminum Leg. Map ----- +----------------------------------------------------+ | ????????? #?????# # ????????? | | ????????? #?????# # ????????? | | ????????? #?????# #########+###### ????????? | | ????????? ####### # # #?# """????????? | | ????????? + # """ #?# """????????? | | ????????? # # """ #?# """????????? | | ????????? # """ # """ ###########????? | | ????????? ####### # """ # # #????? | | ????????? #?????# # """ # # """ #????? | | ????????? #?????# # ######## "R #????? | | ????????? #?????# #######??????# """ """ #????? | | ????????? #?????# #????????????# """ #????? | | ????????? #?????# #????????????# """ #????? | | ????????? #?????# #?#####??##### #????? | | ????????? #?????# #?#"""#??#"""# #????? | | ????????? #?????# ###"T"####"Y"##+########????? | | ????????? #?????#^^t #????????? | | ????????? #?????# ^^^^ #????????? | | ????????? #?????#^ =^ u #????????? | | ????????? #?????#^^!""" """ """ ###########??? | | ????????? #?????# ^%" """ """ # #??? | | ????????? #?###?#^* % """ """ # * #??? | | ??????# ###T### + #??? | | ??????+ # #??? | | ??????# k% r= # """ """ #??? | | ??????# @ g # """ """ #??? | | ??????# ###########+######## #### """ """ #??? | | ?????????##??????# != #???# #??# #??? | | ?????????#???????# """ #???# #??###########??? | | ?????????#???????# """ #???# #???????????????? | | ?????????#???????# """ #???# #???????????????? | | ?????????????????# #???# #########???????? | | ?????????????????######+###### ## #???????? | | ????????????????????# # ## """ #???????? | | ????????????????????# !!!# ## """ #?####### | | ????????????????????# ! # ## """ #?# # | | ????????????????????# !! # ## """ #?# T # | | ????????????????????# ! # ## #?# # | | ????????????????????# """ " # #####+##### # | | ????????????????????# """"" + # """ # | | ????????????????????# """"" # # """ # | | ????????????????????# # #####+## + """ # | | ????????????????????########## #??"" # # # | | ?????????????????????????????# #?""" # # """ # | | ??????????????????????######## # """ #### """ # | | ??????????????????????# # + #??# """ # | | ??????????????????????#[ """ # # #??# # | | ??????????????????????# """ # # #??######? | | ??????????????????????# """ + #############???? | | ??????????????????????# # #???? | +----------------------------------------------------+ Best States ------------- Heat Dissipation 25 Energy Generation 10 Energy Capacity 125 Matter Stores 223 Matter Capacity 300 Sight Range 16 Terrain Scan Density 10 Armor Coverage 150 Evasion (%) 50 Item Schematics ----------------- None Robot Schematics ------------------ None Fabricated ------------ Nothing Alien Tech Used ----------------- None Achievements -------------- None Challenges ------------ None Game ------ Seed NeutronHoverPendant Manual? 0 Play Time 00:21:18 Cumulative 117.8 hours Start 2024.03.13 @ 00:59:00 End 2024.03.13 @ 20:08:31 Sessions 3 Manual Loads 0 Difficulty Rogue Special Mode None Game No. 59 Rogue 59 Adventurer 0 Explorer 0 Win Type - Total 0 Types 0/0/0/0/0/0/0/0/0 Lore% 25 Gallery% 33 Achievement% 24 Wizard Run 0 Options --------- Layout 1 ASCII 0 Keyboard 0 Movement Numpad Keybinds 0 Fullscreen 1 Font 16/SmallcapsGlow Map View 50x40 Zoom Use 90% Tactical HUD 0 Map Filters NONE Filters NONE Steam 1 RUN: cd4e0a56-5815-4356-8ea0-ee004929eba2